bitfinex/quotes_BTCUSD_20250212
["timestamp","ask_amount","ask_price","bid_price","bid_amount"]
[1739366612879,0.206785,96719.0,96705.0,0.15511]
[1739366613086,0.006,96711.0,96706.0,0.00410607]
[1739366613377,0.006,96711.0,96700.0,0.001]
[1739366613378,0.15511,96705.0,96700.0,0.001]
[1739366613628,0.42250354,96710.0,96707.0,0.00408145]
[1739366613776,0.155128,96694.0,96693.0,0.40005481]
[1739366614185,0.155128,96694.0,96693.0,0.40414592]
[1739366615175,0.25763165,96694.0,96693.0,0.40414592]
[1739366615829,0.28163165,96694.0,96693.0,0.41414592]
[1739366616034,0.2189,96693.0,96632.0,0.03831579]
[1739366616238,0.2189,96693.0,96645.0,0.08334419]
[1739366616239,0.155162,96673.0,96645.0,0.08334419]
[1739366616446,0.01,96665.0,96645.0,0.08334419]
[1739366616675,0.33140365,96673.0,96635.0,0.08334419]
[1739366616676,0.155221,96636.0,96635.0,0.08334419]
[1739366616876,0.155241,96624.0,96622.0,0.08334419]
[1739366617113,0.21570054,96632.0,96609.0,0.00022323]
[1739366617270,0.155254,96616.0,96609.0,0.00022323]
[1739366617796,0.155258,96614.0,96609.0,0.00022323]
[1739366617997,0.206972,96631.0,96609.0,0.00022323]
[1739366618197,0.155262,96611.0,96609.0,0.00066374]
[1739366618405,0.08334419,96610.0,96609.0,0.00066374]
[1739366618607,0.0454,96610.0,96609.0,0.00066374]
[1739366618997,0.155262,96611.0,96609.0,0.00566374]
[1739366619579,0.001,96610.0,96609.0,0.00566374]
[1739366619798,0.155262,96611.0,96609.0,0.00566374]
[1739366620252,0.18243205,96610.0,96609.0,0.00566374]
[1739366620429,0.13550365,96610.0,96609.0,0.00066374]
[1739366620633,0.34090365,96610.0,96609.0,0.00166374]
[1739366621262,0.34090365,96610.0,96609.0,0.40066374]
[1739366621611,0.35248613,96610.0,96609.0,0.40443217]
[1739366621999,0.35148613,96610.0,96609.0,0.40443217]
[1739366622145,0.43565842,96610.0,96609.0,0.40443217]
[1739366622347,0.45465842,96610.0,96609.0,0.28043217]
[1739366622569,0.35048613,96610.0,96609.0,0.28043217]
[1739366622974,0.35048613,96610.0,96609.0,0.28143217]
[1739366623353,0.35048613,96610.0,96609.0,0.28043217]
[1739366623549,0.43755842,96610.0,96609.0,0.28043217]
[1739366624014,0.45255842,96610.0,96609.0,0.28143217]
[1739366624213,0.45255842,96610.0,96609.0,0.27643217]
[1739366624371,0.34148613,96610.0,96609.0,0.27443217]
[1739366624764,0.35648613,96610.0,96609.0,0.27543217]
[1739366625367,0.30848613,96610.0,96609.0,0.27443217]
[1739366625609,0.015,96610.0,96609.0,0.27543217]
[1739366625924,0.016,96610.0,96609.0,0.27643217]
[1739366626129,0.015,96610.0,96609.0,0.27543217]
[1739366626330,0.016,96610.0,96609.0,0.27643217]
[1739366626679,0.016,96610.0,96609.0,0.27543217]
[1739366626852,0.11850365,96610.0,96609.0,0.27543217]
[1739366627032,0.10450365,96610.0,96609.0,0.27443217]
[1739366627233,0.11850365,96610.0,96609.0,0.37543217]
[1739366627592,0.11950365,96610.0,96609.0,0.25043217]
[1739366627790,0.10450365,96610.0,96609.0,0.24965603]
[1739366628232,0.21691107,96610.0,96609.0,0.25065603]
[1739366628637,0.12750365,96610.0,96609.0,0.24965603]
[1739366628841,0.13350365,96610.0,96609.0,0.25065603]
[1739366629178,0.11050365,96610.0,96609.0,0.25065603]
[1739366629612,0.009,96610.0,96609.0,0.25065603]
[1739366629991,0.008,96610.0,96609.0,0.25065603]
[1739366630195,0.155262,96611.0,96609.0,0.25065603]
[1739366630196,0.155262,96611.0,96609.0,0.24965603]
[1739366630600,0.33348051,96630.0,96609.0,0.25065603]
[1739366630601,0.001,96610.0,96609.0,0.25065603]
[1739366630863,0.009,96610.0,96609.0,0.25065603]
[1739366631103,0.156263,96610.0,96609.0,0.24965603]
[1739366631437,0.156263,96610.0,96609.0,0.25065603]
[1739366631886,0.155263,96610.0,96609.0,0.24965603]
[1739366632329,0.156263,96610.0,96609.0,0.12465603]
[1739366632563,0.155263,96610.0,96609.0,0.12465603]
[1739366632711,0.207001,96618.0,96609.0,0.12565603]
[1739366632922,0.206989,96624.0,96609.0,0.12565603]
[1739366632923,0.155263,96610.0,96609.0,0.12565603]
[1739366633254,0.155263,96610.0,96609.0,0.1208876]
[1739366633439,0.001,96610.0,96609.0,0.2761526]
[1739366633663,0.01047573,96623.0,96609.0,0.12484595]
[1739366633861,0.155248,96620.0,96610.0,0.207017]
[1739366634062,0.001,96618.0,96610.0,0.207017]
[1739366634200,0.001,96618.0,96611.0,0.15921796]
[1739366634412,0.15625,96618.0,96611.0,0.15921796]
[1739366634642,0.001,96618.0,96612.0,0.15526]
[1739366635047,0.001,96618.0,96617.0,0.155252]
[1739366635366,0.003,96618.0,96617.0,0.15920482]
[1739366636736,0.155225,96634.0,96625.0,0.155239]
[1739366636943,0.15,96643.0,96617.0,0.00895282]
[1739366637138,0.15,96650.0,96617.0,0.005]
[1739366637139,0.003,96618.0,96617.0,0.005]
[1739366637378,0.15825,96618.0,96617.0,0.005]
[1739366637701,0.15525,96618.0,96617.0,0.005]
[1739366638227,0.15,96639.0,96613.0,0.155257]
[1739366638419,0.155248,96619.0,96609.0,0.1208876]
[1739366638683,0.155248,96619.0,96617.0,0.007]
[1739366638904,0.15525,96618.0,96617.0,0.003]
[1739366639218,0.15525,96618.0,96617.0,0.005]
[1739366639476,0.31467755,96618.0,96617.0,0.003]
[1739366639684,0.25786035,96618.0,96617.0,0.003]
[1739366639889,0.25786035,96618.0,96617.0,0.005]
[1739366640130,0.15526,96612.0,96609.0,0.1208876]
[1739366640336,0.25776365,96612.0,96611.0,9.003]
[1739366640927,0.25776365,96612.0,96611.0,9.0]
[1739366642005,0.26876365,96612.0,96611.0,9.001]
[1739366642226,0.26876365,96612.0,96611.0,9.00490427]
[1739366642430,0.16626,96612.0,96611.0,8.87990427]
[1739366642649,0.012,96612.0,96611.0,8.87990427]
[1739366643028,0.011,96612.0,96611.0,8.87990427]
[1739366643235,0.001,96612.0,96611.0,9.03416527]
[1739366643640,0.0001067,96618.0,96617.0,0.155252]
[1739366643974,0.0001067,96618.0,96617.0,0.15917034]
[1739366645205,0.0001067,96618.0,96617.0,0.27167399]
[1739366645411,0.0011067,96618.0,96617.0,0.27167399]
[1739366646235,0.0011067,96618.0,96617.0,0.17617034]
[1739366646438,0.0001067,96618.0,96617.0,0.01091834]
[1739366646649,0.0001067,96618.0,96617.0,0.16617034]
[1739366646854,0.0011067,96618.0,96617.0,0.18117034]
[1739366647086,0.0011067,96618.0,96617.0,0.01891834]
[1739366647298,0.0001067,96618.0,96617.0,0.00391834]
[1739366647700,0.0011067,96618.0,96617.0,0.01350681]
[1739366647909,0.0011067,96618.0,96617.0,0.16875881]
[1739366648058,0.0001067,96618.0,96617.0,0.15875881]
[1739366648267,0.0001067,96618.0,96617.0,0.00850681]
[1739366648588,0.0011067,96618.0,96617.0,0.01050681]
[1739366649121,0.0011067,96618.0,96617.0,0.01450681]
[1739366649271,0.0011067,96618.0,96617.0,0.01050681]
[1739366649478,0.0011067,96618.0,96617.0,0.01450681]
[1739366649687,0.0011067,96618.0,96617.0,0.01050681]
[1739366649882,0.0001067,96618.0,96617.0,0.00350681]
[1739366650121,0.0011067,96618.0,96617.0,0.01]
[1739366650324,0.0011067,96618.0,96617.0,0.01351772]
[1739366650701,0.0001067,96618.0,96617.0,0.00751772]
[1739366651098,0.0001067,96618.0,96617.0,0.01451772]
[1739366651099,0.0011067,96618.0,96617.0,0.01451772]
[1739366651494,0.0011067,96618.0,96617.0,0.01051772]
[1739366651695,0.0001067,96618.0,96617.0,0.00351772]
[1739366652013,0.0001067,96618.0,96617.0,0.00751772]
[1739366652215,0.0001067,96618.0,96617.0,0.00351772]
[1739366652458,0.1553567,96618.0,96617.0,0.00751772]
[1739366652641,0.1553567,96618.0,96617.0,0.004]
[1739366652798,0.25786035,96618.0,96617.0,0.00752702]
[1739366653011,0.25886035,96618.0,96617.0,0.01352702]
[1739366653677,0.26802518,96618.0,96617.0,0.00752702]
[1739366653793,0.26902518,96618.0,96617.0,0.01452702]
[1739366653993,0.3603262,96618.0,96617.0,0.01452702]
[1739366654198,0.3593262,96618.0,96617.0,0.00752702]
[1739366654651,0.5682262,96618.0,96617.0,0.00852702]
[1739366655062,0.5782262,96618.0,96617.0,0.00852702]
[1739366655668,0.5782262,96618.0,96617.0,0.00452702]
[1739366655907,0.49092518,96618.0,96617.0,0.00352702]
[1739366656061,0.01,96613.0,96611.0,8.87522407]
[1739366656266,0.0131067,96618.0,96617.0,0.001]
[1739366656494,0.0141067,96618.0,96617.0,0.00457855]
[1739366656897,0.0121067,96618.0,96617.0,0.00357855]
[1739366657100,0.0001067,96618.0,96617.0,0.00357855]
[1739366657664,0.0001067,96618.0,96611.0,9.03148407]
[1739366657856,0.0001067,96618.0,96612.0,0.00395469]
[1739366658056,0.155258,96613.0,96612.0,0.00395469]
[1739366659880,0.155258,96613.0,96612.0,0.00795469]
[1739366660552,0.156258,96613.0,96612.0,0.01595469]
[1739366662052,0.33659892,96613.0,96612.0,0.01595469]
[1739366662248,0.28176165,96613.0,96612.0,0.01595469]
[1739366662402,0.29191813,96613.0,96611.0,8.76617876]
[1739366662606,0.10250365,96612.0,96611.0,8.76617876]
[1739366663911,0.12550365,96612.0,96611.0,8.76617876]
[1739366664303,0.12650365,96612.0,96611.0,8.76617876]
[1739366664501,0.13650365,96612.0,96611.0,8.76717876]
[1739366664918,0.12550365,96612.0,96611.0,8.76617876]
[1739366665339,0.13650365,96612.0,96611.0,8.76717876]
[1739366665602,0.39392754,96612.0,96611.0,8.76717876]
[1739366666170,0.54918754,96612.0,96611.0,8.76717876]
[1739366666389,0.55318754,96612.0,96611.0,8.76717876]
[1739366666680,0.53818754,96612.0,96611.0,8.76617876]
[1739366666906,0.54318754,96612.0,96611.0,8.76717876]
[1739366667059,0.55918754,96612.0,96611.0,8.76817876]
[1739366667222,0.55918754,96612.0,96611.0,8.66466876]
[1739366667428,0.55918754,96612.0,96611.0,8.49826476]
[1739366667818,0.55918754,96612.0,96611.0,8.27381015]
[1739366668230,0.54418754,96612.0,96611.0,8.27281015]
[1739366668476,0.53818754,96612.0,96611.0,8.27181015]
[1739366668642,0.55318754,96612.0,96611.0,8.16930015]
[1739366668847,0.57989988,96612.0,96611.0,8.16930015]
[1739366668992,0.60617564,96612.0,96611.0,8.07109144]
[1739366669371,0.57989988,96612.0,96611.0,7.82884926]
[1739366669625,1.26176564,96612.0,96611.0,7.21976221]
[1739366669823,1.25376564,96612.0,96611.0,6.60284801]
[1739366670042,1.19222064,96612.0,96611.0,6.57386848]
[1739366670331,1.09820364,96612.0,96611.0,5.516947]
[1739366670536,0.89027564,96612.0,96611.0,4.89487626]
[1739366670734,0.87627564,96612.0,96611.0,4.89487626]
[1739366670960,0.86445764,96612.0,96611.0,4.27927552]
[1739366671162,0.86445764,96612.0,96611.0,4.21598132]
[1739366671301,0.86445764,96612.0,96611.0,3.98028132]
[1739366671493,0.85918188,96612.0,96611.0,3.42031658]
[1739366671695,0.85918188,96612.0,96611.0,3.33711058]
[1739366671896,0.85918188,96612.0,96611.0,2.81854984]
[1739366671897,0.83246954,96612.0,96611.0,2.81854984]
[1739366672123,0.58806365,96612.0,96611.0,2.81854984]
[1739366672493,0.58806365,96612.0,96611.0,2.67284784]
[1739366672606,0.58806365,96612.0,96611.0,2.65214584]
[1739366672805,0.55006365,96612.0,96611.0,2.59003984]
[1739366673011,0.6595673,96612.0,96611.0,2.59003984]
[1739366673335,0.5582673,96612.0,96611.0,2.59003984]
[1739366673534,0.43276365,96612.0,96611.0,2.59003984]
[1739366673730,0.42476365,96612.0,96611.0,2.59003984]
[1739366673928,0.33826,96612.0,96611.0,2.59003984]
[1739366674250,0.15050365,96612.0,96611.0,2.59003984]
[1739366674583,0.29076365,96612.0,96611.0,2.59003984]
[1739366674892,0.41407443,96612.0,96611.0,2.59003984]
[1739366675014,0.40407443,96612.0,96611.0,2.59003984]
[1739366675215,0.51337443,96612.0,96611.0,2.59003984]
[1739366676252,0.50637443,96612.0,96611.0,2.59003984]
[1739366676444,0.51337443,96612.0,96611.0,2.54003984]
[1739366676807,0.49237443,96612.0,96611.0,2.54003984]
[1739366677011,0.50637443,96612.0,96611.0,2.54168595]
[1739366677248,0.67337443,96612.0,96611.0,2.54168595]
[1739366677453,0.25787035,96612.0,96611.0,2.41668595]
[1739366677863,0.27887035,96612.0,96611.0,2.41668595]
[1739366678063,0.27187035,96612.0,96611.0,2.41668595]
[1739366678192,0.25787035,96612.0,96611.0,2.41668595]
[1739366678606,0.27187035,96612.0,96611.0,2.41668595]
[1739366678833,0.0141067,96612.0,96611.0,2.41668595]
[1739366679398,0.1693667,96612.0,96611.0,2.41668595]
[1739366679587,0.27887035,96612.0,96611.0,2.41668595]
[1739366679791,0.27187035,96612.0,96611.0,2.41668595]
[1739366679945,0.29487035,96612.0,96611.0,2.41668595]
[1739366680755,0.28187035,96612.0,96611.0,2.41668595]
[1739366680957,0.38342493,96612.0,96611.0,2.41668595]
[1739366681153,0.29112492,96612.0,96611.0,2.41668595]
[1739366681360,0.46112492,96612.0,96611.0,2.41668595]
[1739366681563,0.47712492,96612.0,96611.0,2.41668595]
[1739366681892,0.58642492,96612.0,96611.0,2.41668595]
[1739366682085,0.57542492,96612.0,96611.0,2.41668595]
[1739366682257,0.67792857,96612.0,96611.0,2.41668595]
[1739366682457,0.68292857,96612.0,96611.0,2.29168595]
[1739366682659,0.67792857,96612.0,96611.0,2.29168595]
[1739366683077,0.67892857,96612.0,96611.0,2.29168595]
[1739366683292,0.70009778,96612.0,96611.0,2.28581855]
[1739366683467,0.70009778,96612.0,96611.0,2.28272606]
[1739366683681,0.69909778,96612.0,96611.0,2.28272606]
[1739366683880,0.69409778,96612.0,96611.0,2.28272606]
[1739366684304,0.71309778,96612.0,96611.0,2.28272606]
[1739366684769,0.57942492,96612.0,96611.0,2.28272606]
[1739366685113,0.46012492,96612.0,96611.0,2.28272606]
[1739366685222,0.28712492,96612.0,96611.0,2.28272606]
[1739366685847,0.1743667,96612.0,96611.0,2.40972606]
[1739366686050,0.0191067,96612.0,96611.0,2.40972606]
[1739366686936,0.0001067,96612.0,96611.0,2.40972606]
[1739366687149,0.0141067,96612.0,96611.0,2.40972606]
[1739366687401,0.0141067,96612.0,96611.0,2.56498706]
[1739366687704,0.0001067,96612.0,96611.0,2.56498706]
[1739366688110,0.0021067,96612.0,96611.0,2.40972606]
[1739366690754,0.0001067,96612.0,96611.0,2.40972606]
[1739366691012,0.0031067,96612.0,96611.0,2.40972606]
[1739366691613,0.0001067,96612.0,96611.0,2.40972606]
[1739366691776,0.0031067,96612.0,96611.0,2.40972606]
[1739366694642,0.0031067,96612.0,96611.0,2.56498706]
[1739366695246,0.0001067,96618.0,96611.0,2.32942606]
[1739366695475,0.0001067,96618.0,96617.0,0.237752]
[1739366695988,0.0001067,96618.0,96617.0,0.24287313]
[1739366696204,0.0001067,96618.0,96617.0,0.28997313]
[1739366696932,0.0001067,96618.0,96617.0,0.29197313]
[1739366697107,0.0001067,96618.0,96617.0,0.28997313]
[1739366697260,0.0021067,96618.0,96617.0,0.28997313]
[1739366697469,0.0031067,96618.0,96617.0,0.29197313]
[1739366697667,0.0031067,96618.0,96617.0,0.28997313]
[1739366697914,0.0011067,96618.0,96617.0,0.28997313]
[1739366698087,0.0011067,96618.0,96617.0,0.13472113]
[1739366698614,0.0011067,96618.0,96617.0,0.28997313]
[1739366698844,0.0021067,96618.0,96617.0,0.28997313]
[1739366699535,0.0021067,96618.0,96617.0,0.29197313]
[1739366699737,0.0011067,96618.0,96617.0,0.39247678]
[1739366699931,0.01,96663.0,96617.0,0.39247678]
[1739366699932,0.155207,96645.0,96637.0,0.155219]
[1739366700162,0.155206,96646.0,96639.0,0.045]
[1739366700421,0.01,96664.0,96640.0,0.00158399]
[1739366700662,0.023,96660.0,96640.0,0.00158399]
[1739366700861,0.15,96658.0,96643.0,0.15521]
[1739366701072,0.005,96645.0,96640.0,0.00158399]
[1739366701356,0.01804396,96645.0,96643.0,0.155208]
[1739366701644,0.00504396,96645.0,96644.0,0.00157542]
[1739366702074,0.00504396,96645.0,96639.0,0.045]
[1739366702075,0.10754761,96645.0,96640.0,0.08334419]
[1739366702266,0.00504396,96645.0,96644.0,0.16020102]
[1739366702486,0.00504396,96645.0,96644.0,0.155208]
[1739366702705,0.00504396,96645.0,96644.0,0.24019489]
[1739366703056,4.396e-05,96645.0,96644.0,0.24019489]
[1739366703465,0.001,96645.0,96644.0,0.08498689]
[1739366703675,0.001,96645.0,96644.0,0.24019489]
[1739366703884,0.001,96645.0,96644.0,0.24177031]
[1739366704694,0.001,96645.0,96644.0,0.08656231]
[1739366708680,0.001,96645.0,96644.0,0.08576231]
[1739366708885,0.001,96645.0,96644.0,0.0791]
[1739366709469,0.155205,96646.0,96644.0,0.0791]
[1739366709676,0.007,96645.0,96644.0,0.0791]
[1739366710610,0.164207,96645.0,96644.0,0.0791]
[1739366710818,0.157207,96645.0,96644.0,0.0791]
[1739366711020,0.155207,96645.0,96644.0,0.0791]
[1739366711227,0.005,96645.0,96644.0,0.0791]
[1739366711436,0.005,96645.0,96644.0,0.234308]
[1739366711635,0.005,96645.0,96644.0,0.08631495]
[1739366712275,0.006,96645.0,96644.0,0.08631495]
[1739366712487,0.001,96645.0,96644.0,0.08631495]
[1739366712711,0.00043994,96646.0,96644.0,0.08631495]
[1739366712914,0.004,96645.0,96644.0,0.08631495]
[1739366713343,0.00043994,96646.0,96644.0,0.08631495]
[1739366713597,0.158207,96645.0,96644.0,0.08631495]
[1739366714116,0.155207,96645.0,96644.0,0.08631495]
[1739366714324,0.002,96645.0,96644.0,0.08631495]
[1739366714740,0.157207,96645.0,96644.0,0.08631495]
[1739366715863,0.157207,96645.0,96644.0,0.0791]
[1739366716267,0.157207,96645.0,96644.0,0.08631495]
[1739366716685,0.157207,96645.0,96644.0,0.00721495]
[1739366717054,0.155224,96634.0,96633.0,0.0827]
[1739366717419,0.155224,96634.0,96633.0,0.08998061]
[1739366717825,0.25772765,96634.0,96633.0,0.00728061]
[1739366718133,0.003,96645.0,96622.0,0.08334419]
[1739366718324,0.10250365,96644.0,96616.0,0.0811]
[1739366718487,0.155243,96623.0,96616.0,0.0811]
[1739366718894,0.155244,96622.0,96619.0,0.00737999]
[1739366719516,0.10250365,96644.0,96616.0,0.0811]
[1739366719517,0.155247,96620.0,96616.0,0.0811]
[1739366719930,0.155247,96620.0,96619.0,0.00737999]
[1739366720134,0.155247,96620.0,96616.0,0.0811]
[1739366720336,0.155244,96623.0,96619.0,0.00162897]
[1739366720509,0.155242,96624.0,96619.0,0.00837999]
[1739366720818,0.206966,96634.0,96619.0,0.001]
[1739366721034,0.2172586,96634.0,96619.0,0.001]
[1739366721224,0.2172586,96634.0,96620.0,0.00737574]
[1739366721444,0.20697,96632.0,96620.0,0.00737574]
[1739366721613,0.155245,96621.0,96620.0,0.00737574]
[1739366722255,0.156248,96620.0,96616.0,0.0811]
[1739366722411,0.156248,96620.0,96619.0,0.002]
[1739366722667,0.156248,96620.0,96619.0,0.00755629]
[1739366722872,0.156248,96620.0,96619.0,0.00555629]
[1739366722873,0.155248,96620.0,96619.0,0.00555629]
[1739366723321,0.155248,96620.0,96619.0,0.00022386]
[1739366723459,0.01062077,96621.0,96619.0,0.08182386]
[1739366723658,0.155245,96621.0,96620.0,0.0497]
[1739366723854,0.155245,96621.0,96620.0,0.05503042]
[1739366725823,0.164245,96621.0,96620.0,0.05503042]
[1739366726002,0.162245,96621.0,96620.0,0.05503042]
[1739366726416,0.157245,96621.0,96620.0,0.05503042]
[1739366726646,0.17457498,96621.0,96620.0,0.05503042]
[1739366727198,0.164245,96621.0,96620.0,0.05503042]
[1739366727402,0.009,96621.0,96619.0,0.01185428]
[1739366728602,0.155244,96622.0,96619.0,0.01185428]
[1739366728811,0.206987,96624.0,96619.0,0.01185428]
[1739366729036,0.155247,96620.0,96619.0,0.01185428]
[1739366729233,0.009,96621.0,96619.0,0.01185428]
[1739366729444,0.009,96621.0,96620.0,0.155247]
[1739366729647,0.14430335,96670.0,96620.0,0.10250365]
[1739366729911,0.155195,96653.0,96644.0,0.155208]
[1739366730375,0.206893,96669.0,96644.0,0.155208]
[1739366730529,0.0001067,96670.0,96644.0,0.38394638]
[1739366730730,0.0001067,96670.0,96644.0,0.38291165]
[1739366731693,0.15489164,96684.0,96677.0,0.155154]
[1739366731853,0.15493564,96684.0,96677.0,0.231254]
[1739366732068,4.4e-05,96684.0,96677.0,0.0761]
[1739366732288,4.4e-05,96684.0,96683.0,0.08334419]
[1739366732487,4.4e-05,96684.0,96682.0,0.155147]
[1739366733486,0.006044,96684.0,96682.0,0.155147]
[1739366733689,0.006044,96684.0,96682.0,0.157147]
[1739366734313,0.006044,96684.0,96683.0,0.10250365]
[1739366734723,0.006044,96684.0,96682.0,0.157147]
[1739366735364,4.4e-05,96684.0,96682.0,0.157147]
[1739366735784,0.001044,96684.0,96682.0,0.157147]
[1739366736111,0.0011506,96684.0,96682.0,0.155147]
[1739366736329,0.0011506,96684.0,96683.0,0.002]
[1739366736552,0.206861,96683.0,96678.0,0.046]
[1739366736762,0.0011506,96684.0,96667.0,0.0773]
[1739366736965,0.155146,96683.0,96682.0,0.002]
[1739366737168,0.0011506,96684.0,96673.0,0.155161]
[1739366737169,0.155149,96682.0,96673.0,0.155161]
[1739366737317,0.2080106,96684.0,96667.0,0.0773]
[1739366737694,0.0011506,96684.0,96678.0,0.155153]
[1739366737893,0.0001506,96684.0,96678.0,0.155153]
[1739366738200,0.0011506,96684.0,96668.0,0.10250365]
[1739366738419,0.0011506,96684.0,96671.0,0.206887]
[1739366738623,0.0011506,96684.0,96683.0,0.157146]
[1739366738817,0.0001506,96684.0,96683.0,0.155146]
[1739366739046,0.0041506,96684.0,96683.0,0.155146]
[1739366739202,0.0051506,96684.0,96683.0,0.155146]
[1739366739485,0.0041506,96684.0,96672.0,0.10250365]
[1739366739692,0.0041506,96684.0,96683.0,0.155146]
[1739366740110,0.0001506,96684.0,96683.0,0.155146]
[1739366741278,0.0031506,96684.0,96683.0,0.155146]
[1739366741866,0.0001506,96684.0,96683.0,0.156146]
[1739366742223,0.21695686,96704.0,96676.0,0.00996]
[1739366742559,0.001,96684.0,96683.0,0.157146]
[1739366742762,0.001,96684.0,96683.0,0.155146]
[1739366742966,0.20683,96698.0,96681.0,0.206864]
[1739366743166,0.20683,96698.0,96685.0,0.155142]
[1739366743324,0.10250365,96703.0,96681.0,0.206864]
[1739366743325,0.155129,96694.0,96682.0,0.155146]
[1739366743527,0.155121,96699.0,96684.0,0.206859]
[1739366743731,0.155121,96699.0,96688.0,0.155136]
[1739366744133,0.305118,96701.0,96689.0,0.155135]
[1739366744362,0.155123,96698.0,96687.0,0.155138]
[1739366744561,0.155124,96697.0,96677.0,0.08334419]
[1739366744717,0.155127,96695.0,96684.0,0.155144]
[1739366745163,0.155129,96694.0,96684.0,0.155144]
[1739366745383,0.008,96698.0,96678.0,0.00683762]
[1739366745555,0.155136,96689.0,96678.0,0.16199062]
[1739366745754,0.206842,96693.0,96678.0,0.00683762]
[1739366745965,0.006,96695.0,96678.0,0.155153]
[1739366746165,0.006,96695.0,96679.0,0.00683338]
[1739366746375,0.15,96702.0,96666.0,5.0]
[1739366746376,0.206848,96689.0,96666.0,5.0]
[1739366746736,0.155161,96674.0,96672.0,4.4e-05]
[1739366747286,0.155161,96674.0,96673.0,0.00477545]
[1739366747728,0.155161,96674.0,96672.0,4.4e-05]
[1739366747931,0.155161,96674.0,96673.0,0.00208339]
[1739366748134,0.155161,96674.0,96672.0,4.4e-05]
[1739366748337,0.155161,96674.0,96673.0,0.00208339]
[1739366748538,0.155161,96674.0,96672.0,4.4e-05]
[1739366748720,0.155161,96674.0,96673.0,0.00208339]
[1739366748924,0.155161,96674.0,96672.0,4.4e-05]
[1739366749125,0.155161,96674.0,96673.0,0.00208339]
[1739366749328,0.25766465,96674.0,96672.0,4.4e-05]
[1739366749708,0.10250365,96673.0,96672.0,4.4e-05]
[1739366751990,0.12550365,96673.0,96672.0,4.4e-05]
[1739366752194,0.13950365,96673.0,96672.0,4.4e-05]
[1739366752511,0.14450365,96673.0,96672.0,4.4e-05]
[1739366752758,0.14450365,96673.0,96666.0,5.0]
[1739366752759,0.155171,96667.0,96666.0,4.875044]
[1739366753139,0.43067465,96667.0,96666.0,4.875044]
[1739366754157,0.43367465,96667.0,96666.0,4.875044]
[1739366754452,0.44367465,96667.0,96666.0,4.875044]
[1739366754809,0.43367465,96667.0,96666.0,4.875044]
[1739366755203,0.44767465,96667.0,96666.0,4.875044]
[1739366755414,0.44467465,96667.0,96666.0,4.875044]
[1739366755639,0.44967465,96667.0,96666.0,4.875044]
[1739366756439,0.44467465,96667.0,96666.0,4.875044]
[1739366756642,0.45067465,96667.0,96666.0,4.875044]
[1739366756841,0.42767465,96667.0,96666.0,4.875044]
[1739366757508,0.325171,96667.0,96666.0,4.750044]
[1739366757709,0.311171,96667.0,96666.0,4.750044]
[1739366758120,0.325171,96667.0,96666.0,4.750044]
[1739366758468,0.305171,96667.0,96666.0,4.750044]
[1739366758669,0.311171,96667.0,96666.0,4.750044]
[1739366758880,0.324171,96667.0,96666.0,4.750044]
[1739366759284,0.325171,96667.0,96666.0,4.750044]
[1739366760359,0.325171,96667.0,96666.0,4.75026786]
[1739366760559,0.45067465,96667.0,96666.0,4.75026786]
[1739366760741,0.43767465,96667.0,96666.0,4.75026786]
[1739366760944,0.44267465,96667.0,96666.0,4.75026786]
[1739366761567,0.43067465,96667.0,96666.0,4.75026786]
[1739366761761,0.44367465,96667.0,96666.0,4.75026786]
[1739366762187,0.44367465,96667.0,96666.0,4.75501839]
[1739366762390,0.43067465,96667.0,96666.0,4.63001839]
[1739366762614,0.43667465,96667.0,96666.0,4.63001839]
[1739366762819,0.45067465,96667.0,96666.0,4.63001839]
[1739366763249,0.42767465,96667.0,96666.0,4.63001839]
[1739366764472,0.45067465,96667.0,96666.0,4.63001839]
[1739366764900,0.53712002,96667.0,96666.0,4.63001839]
[1739366765041,0.62682002,96667.0,96666.0,4.57632119]
[1739366765254,0.60682002,96667.0,96666.0,4.57632119]
[1739366765620,0.61082002,96667.0,96666.0,4.51425119]
[1739366765763,0.62382002,96667.0,96666.0,4.3990944]
[1739366765959,0.61982002,96667.0,96666.0,4.3990944]
[1739366766167,0.62582002,96667.0,96666.0,4.3990944]
[1739366766370,0.62582002,96667.0,96666.0,4.18845314]
[1739366766371,0.73512002,96667.0,96666.0,4.18845314]
[1739366766569,0.72912002,96667.0,96666.0,4.12638314]
[1739366767047,0.72912002,96667.0,96666.0,4.10938314]
[1739366767251,0.62967465,96667.0,96666.0,4.04989314]
[1739366767462,0.64467465,96667.0,96666.0,3.90420314]
[1739366767675,0.64467465,96667.0,96666.0,3.83093314]
[1739366767903,0.50167465,96667.0,96666.0,3.78093314]
[1739366768289,0.54237465,96667.0,96666.0,3.75693314]
[1739366768485,0.53237465,96667.0,96666.0,3.73193314]
[1739366768630,0.52037465,96667.0,96666.0,3.71124314]
[1739366768836,0.53537465,96667.0,96666.0,3.62188314]
[1739366769083,0.6448783,96667.0,96666.0,3.58050314]
[1739366769287,0.6448783,96667.0,96666.0,3.04638314]
[1739366769460,0.7541783,96667.0,96666.0,2.93862314]
[1739366769661,0.7541783,96667.0,96666.0,2.84951414]
[1739366769866,0.7541783,96667.0,96666.0,2.81925514]
[1739366770041,0.75427382,96667.0,96666.0,2.34131608]
[1739366770454,0.73927382,96667.0,96666.0,2.29993608]
[1739366770764,0.75427382,96667.0,96666.0,2.23786608]
[1739366771170,0.75427382,96667.0,96666.0,2.20476608]
[1739366771370,0.75427382,96667.0,96666.0,2.11640182]
[1739366771675,0.75427382,96667.0,96666.0,1.96333182]
[1739366771876,0.75427382,96667.0,96666.0,1.92728182]
[1739366772274,0.75427382,96667.0,96666.0,1.84819183]
[1739366772275,0.53247017,96667.0,96666.0,1.84819183]
[1739366772476,0.75817017,96667.0,96666.0,1.72319183]
[1739366772685,0.60817017,96667.0,96666.0,1.72319183]
[1739366773133,0.60817017,96667.0,96666.0,1.72132261]
[1739366773609,0.61817017,96667.0,96666.0,1.6782726]
[1739366773784,0.59327677,96667.0,96666.0,1.6782726]
[1739366773984,0.74327677,96667.0,96666.0,1.6782726]
[1739366774211,0.75827677,96667.0,96666.0,1.6782726]
[1739366774390,0.77427677,96667.0,96666.0,1.6782726]
[1739366774591,0.76627677,96667.0,96666.0,1.6782726]
[1739366774787,0.78127677,96667.0,96666.0,1.6782726]
[1739366774991,0.77427677,96667.0,96666.0,1.6782726]
[1739366775244,0.78127677,96667.0,96666.0,1.6782726]
[1739366775393,0.77427677,96667.0,96666.0,1.6782726]
[1739366775938,0.75827677,96667.0,96666.0,1.6782726]
[1739366776168,0.60827677,96667.0,96666.0,1.6782726]
[1739366776381,0.59327677,96667.0,96666.0,1.6782726]